Cogmind - Beta 10.2 *** ADVENTURER MODE // 2021.09.26 @ 17:49:01 Player: juauke Result: Destroyed by G-34 Mercenary with Small Laser Performance ------------- Evolutions (1) 500 Regions Visited (2) 400 Robots Destroyed (14) 70 Value Destroyed (438) 438 Prototype IDs (0) 0 Alien Tech Used (0) 0 Bonus (0) 0 TOTAL SCORE: 1408 Bonus ------- None Cogmind --------- Core Integrity 0/400 Matter 295/300 Energy 85/100 System Corruption 2% Temperature Cool (21) Movement Core (100) Ox1 Location -9/Materials Parts ------- > --- POWER (2) -------- (None) > --- PROPULSION (2) --- (None) > --- UTILITY (3) ------ Small Storage Unit Signal Interpreter > --- WEAPON (2) ------- (None) > --- INVENTORY (6) ---- Ion Engine Aluminum Leg Visual Processing Unit Improved Terrain Scanner Peak State ------------ > --- POWER ------------ Ion Engine Light Ion Engine > --- PROPULSION ------- Aluminum Leg Aluminum Leg > --- UTILITY ---------- Heat Sink Heat Sink Signal Interpreter > --- WEAPON ----------- Small Laser Assault Rifle > --- INVENTORY -------- Ion Engine Aluminum Leg [Rating: 9] Favorites ----------- Power Ion Engine Engine Ion Engine Propulsion Aluminum Leg Treads Light Treads Leg Aluminum Leg Utility Heat Sink Device Heat Sink Storage Small Storage Unit Processor Signal Interpreter Weapon Assault Rifle Energy Gun Small Laser Energy Cannon Particle Cannon Ballistic Gun Assault Rifle Special Weapon Welding Torch Build | -11 -10 -9 ------- Run | Scr Mat Mat Slots Evolved 2 | . . 2 Power 1 | . . 1 Propulsion . | . . . Utility 1 | . . 1 Weapon . | . . . Parts Attached 23 | 6 6 11 Power 4 | 2 1 1 Engine 4 | 2 1 1 Core . | . . . Reactor . | . . . Propulsion 5 | 2 1 2 Treads 2 | . . 2 Leg 3 | 2 1 . Wheel . | . . . Hover . | . . . Flight . | . . . Utility 4 | . 2 2 Device 2 | . 2 . Storage 1 | . . 1 Processor 1 | . . 1 Hackware . | . . . Protection . | . . . Artifact . | . . . Weapon 10 | 2 2 6 Energy Gun 6 | 1 2 3 Energy Cannon 2 | . . 2 Ballistic Gun 1 | 1 . . Ballistic Cannon . | . . . Launcher . | . . . Special Weapon 1 | . . 1 Impact Weapon . | . . . Slashing Weapon . | . . . Piercing Weapon . | . . . Special Melee Weapon . | . . . Unidentified Prototypes . | . . . Parts Lost 12 | . 1 11 Power 2 | . . 2 Propulsion 2 | . . 2 Utility 2 | . . 2 Weapon 6 | . 1 5 Highest Loss Streak 9 | . 1 9 Average Slot Usage (%) 80 | . 77 82 Engine 16 | . 14 17 Treads 4 | . . 6 Leg 16 | . 28 11 Device 14 | . 6 17 Processor 6 | . . 8 Energy Gun 10 | . 13 8 Ballistic Gun 9 | . 14 7 Naked Turns . | . . . Heaviest Build 13 | 9 10 13 Greatest Support 40 | 20 20 40 Greatest Overweight (x) 2 | . . 2 Average Overweight (x) . | . . . Largest Inventory Capacity 6 | 4 4 6 Average Capacity 4 | 4 4 4 Most Carried 4 | 1 3 4 Average Carried 2 | . 2 3 Final Capacity 6 | 4 4 6 Final Carried 4 | 1 3 4 Class Distribution -------------------- 66% | Scavenger-Mutant 33% | Mutant Dominant Class ---------------- Mutant | -10/Materials Scavenger-Mutant | -9/Materials Resources | -11 -10 -9 ----------- Run | Scr Mat Mat Matter Collected 499 | 250 125 124 Remotely . | . . . Salvage Created 507 | 32 225 250 Parts 26 | 3 10 13 Haulers Intercepted . | . . . Recyclers Shooed . | . . . Parts Field Recycled . | . . . Retrieved Matter . | . . . Parts Self-Destructed . | . . . Prevented . | . . . Kills | -11 -10 -9 ------- Run | Scr Mat Mat Combat Hostiles Destroyed 13 | 1 5 7 Guns 12 | 1 5 6 Cannons 1 | . . 1 Classes Destroyed 5 | 1 . 4 Watcher 1 | . . 1 Swarmer 2 | . . 2 Grunt 9 | 1 5 3 Brawler 1 | . . 1 Duelist 1 | . . 1 Best Kill Streak 4 | 1 2 4 Combat Bots Only 4 | 1 2 4 Max Kills in Single Turn 2 | 1 1 2 Gunslinging 1 | . . 1 Exploded . | . . . Melee . | . . . Uniques/NPCs Destroyed . | . . . Combat | -11 -10 -9 -------- Run | Scr Mat Mat Damage Taken 1484 | 18 231 1235 Core 471 | 9 59 403 Absorbed by Shields . | . . . Core Remaining (%) 84 | 96 72 . Volleys Fired 58 | 2 18 38 Largest 2 | 2 2 2 Hottest 80 | 70 70 80 Shots Fired 103 | 4 31 68 Gun 99 | 4 31 64 Cannon . | . . . Launcher . | . . . Special 4 | . . 4 Kinetic 43 | 2 18 23 Thermal 60 | 2 13 45 Explosive . | . . . Electromagnetic . | . . . Robot Hit Streak 33 | 3 32 33 Robot Miss Streak 2 | . . 2 Penetration Max . | . . . Secondary Targets 2 | . 1 1 Max Gunslinging Chain 1 | . 1 1 Shots Hit Robots 83 | 3 29 51 Core Hits 31 | 2 11 18 Critical Hits 1 | . . 1 Critical Kills 1 | . . 1 Critical Parts Destroyed . | . . . Melee Attacks . | . . . Impact . | . . . Slashing . | . . . Piercing . | . . . Sneak Attacks . | . . . Combat Hostiles . | . . . Follow-up Attacks . | . . . Damage Inflicted 907 | 39 348 520 Guns 887 | 39 348 500 Cannons . | . . . Explosions . | . . . Melee . | . . . Ramming 11 | . . 11 Kinetic 374 | 14 190 170 Thermal 522 | 25 158 339 Explosive . | . . . Electromagnetic . | . . . Impact . | . . . Slashing . | . . . Piercing . | . . . Highest Corruption 2 | . . 2 Average Corruption 1 | . . 1 Corruption Purged . | . . . Effects 3 | . . 3 Energy Discharges 1 | . . 1 Targeting Errors 2 | . . 2 Overload Shots . | . . . Overflow Damage . | . . . Projectiles . | . . . Explosions . | . . . Melee . | . . . Knockbacks . | . . . Impact . | . . . Kinetic . | . . . Secondary . | . . . Self-Inflicted Damage 5 | . . 5 Shots . | . . . Rammed 2 | . . 2 Targets Rammed 2 | . . 2 Kicked . | . . . Crushed . | . . . Highest Temperature 201 | 30 201 2 Average Temperature 75 | 20 84 2 Received Heat Transfer 636 | 12 174 450 Siege Activations . | . . . Robots Corrupted . | . . . Combat Hostiles . | . . . Parts Fried . | . . . Impact Corruptions . | . . . Robots Melted . | . . . Combat Hostiles . | . . . Parts Melted . | . . . Heat Transferred 1368 | 74 469 825 Parts Sabotaged . | . . . Parts Stolen . | . . . Parts Stripped . | . . . Power Chain Reactions . | . . . Missiles Intercepted . | . . . Alert | -11 -10 -9 ------- Run | Scr Mat Mat Peak Influence 196 | 20 181 196 Initial 64 | . 11 64 Average 67 | 2 96 65 Maximum Alert Level . | . . . Low Security (%) 100 | 100 100 100 Level 1 . | . . . Level 2 . | . . . Level 3 . | . . . Level 4 . | . . . Level 5 . | . . . High Security . | . . . Max Security . | . . . Squads Dispatched 2 | . 2 . Investigation 2 | . 2 . Extermination . | . . . Reinforcement . | . . . Assault . | . . . Garrison . | . . . Intercept . | . . . Construction Impeded . | . . . Haulers Reinforced . | . . . Stealth | -11 -10 -9 --------- Run | Scr Mat Mat Distress Signals 4 | . . 4 Communications Jammed . | . . . Distress Signals . | . . . Times Spotted 28 | 1 6 21 Peak Tracking Total 7 | 1 3 7 Tactical Retreats 4 | . 1 3 Traps | -11 -10 -9 ------- Run | Scr Mat Mat Traps Triggered 3 | . 1 2 Indirectly . | . . . Trap Hack Attempts . | . . . Triggered . | . . . Disarmed . | . . . Reprogrammed . | . . . Reused . | . . . Traps Extracted . | . . . Installed . | . . . Triggered . | . . . Machines | -11 -10 -9 ---------- Run | Scr Mat Mat Machines Disabled . | . . . Max in Single Turn . | . . . Machines Sabotaged . | . . . Garrisons Compromised . | . . . Overloaded Fab Kills . | . . . Fab Network Shutdowns . | . . . Hacking | -11 -10 -9 --------- Run | Scr Mat Mat Machines Accessed 2 | . 1 1 Terminals 1 | . 1 . Fabricators . | . . . Repair Stations 1 | . . 1 Recycling Units . | . . . Scanalyzers . | . . . Garrison Access . | . . . Total Hacks 7 | . 3 4 Successful 6 | . 2 4 Failed 1 | . 1 . Catastrophic . | . . . Database Lockouts . | . . . Manual . | . . . Terminals 3 | . 3 . Fabricators . | . . . Repair Stations 4 | . . 4 Recycling Units . | . . . Scanalyzers . | . . . Garrison Access . | . . . Terminal Hacks 2 | . 2 . Record 2 | . 2 . Fabricator Hacks . | . . . Repair Station Hacks 4 | . . 4 Scan Component 2 | . . 2 Repair 2 | . . 2 Recycling Unit Hacks . | . . . Scanalyzer . | . . . Garrison Access Hacks . | . . . Unauthorized Hacks . | . . . Terminals . | . . . Fabricators . | . . . Repair Stations . | . . . Recycling Units . | . . . Scanalyzers . | . . . Garrison Access . | . . . Data Cores Recovered . | . . . Used . | . . . Hacking Detections 2 | . 1 1 Full Trace Events 2 | . 1 1 Feedback Events . | . . . Feedback Blocked . | . . . Robot Schematics Acquired . | . . . Robots Built . | . . . Matter . | . . . Time . | . . . Total Robot Build Rating . | . . . Part Schematics Acquired . | . . . Parts Built . | . . . Matter . | . . . Time . | . . . Total Part Build Rating . | . . . Parts Repaired 2 | . . 2 Time 52 | . . 52 Parts Recycled . | . . . Recycled Matter . | . . . Retrieved Matter . | . . . Retrieved Components . | . . . Parts Scanalyzed . | . . . Part Schematics Acquired . | . . . Parts Damaged . | . . . Bothacking | -11 -10 -9 ------------ Run | Scr Mat Mat Used RIF Installer . | . . . Robots Hacked . | . . . Non-combat . | . . . Combat . | . . . Robot Hacks Applied . | . . . Relay Couplers Released . | . . . Robots Rewired . | . . . Allies Hacked . | . . . Hacks Repelled . | . . . Allies | -11 -10 -9 -------- Run | Scr Mat Mat Total Allies . | . . . Largest Group . | . . . Highest-Rated Group . | . . . Highest-Rated Ally . | . . . Total Orders . | . . . Ally Attacks . | . . . Total Damage . | . . . Kills . | . . . Allies Corrupted . | . . . Allies Melted . | . . . Intel | -11 -10 -9 ------- Run | Scr Mat Mat Robot Analysis Total . | . . . Derelict Logs Recovered . | . . . Drone Launches . | . . . Drone Recoveries . | . . . Exploration | -11 -10 -9 ------------- Run | Scr Mat Mat Turns Passed 1285 | 138 341 806 Spaces Moved 853 | 102 236 515 Core 159 | 27 . 132 Treads 129 | . . 129 Legs 565 | 75 236 254 Wheels . | . . . Hover . | . . . Flight . | . . . Fastest Speed 50 | 50 120 50 Average Speed 117 | 101 120 120 Slowest Speed 160 | 120 120 160 Overloaded Moves . | . . . Propulsion Burnouts . | . . . Robots Hopped . | . . . Cave-ins Triggered . | . . . Exploration Rate (%) 18 | 5 22 27 Regions Visited 2 Branch Regions . Pre-discovered Areas . | . . . Known Exits Taken . | . . . Unknown Exits Taken 2 | 1 1 . Scrap Searched . | . . . Spaces Dug . | . . . Terrain Destroyed . | . . . Melee . | . . . Projectile . | . . . AOE . | . . . Terrain Rammed . | . . . Walls Destroyed . | . . . Machines Disabled . | . . . Actions | -11 -10 -9 --------- Run | Scr Mat Mat Total 1020 | 129 261 630 Wait 76 | 19 . 57 Move 851 | 101 235 515 Hop . | . . . Pick Up 5 | 1 1 3 Fast Attach 18 | 5 3 10 Attach 2 | . 1 1 Detach 1 | . 1 . Swap 3 | 1 2 . Drop 4 | . . 4 Fire 58 | 2 18 38 Melee . | . . . Ram 2 | . . 2 Kick . | . . . Crush . | . . . Escape Stasis . | . . . Rewire . | . . . Trap . | . . . Miscellaneous . | . . . Route ------- -11/Scrapyard -10/Materials -9/Materials (discovered 2 exits: [*Mat] / *Sto) History --------- Turn | Location | Event 2 | -11/Scrapyard | Met Revision 17 87 | -11/Scrapyard | Discovered new exit (range 8) 139 | -11/Scrapyard | Entered Materials 305 | -10/Materials | Build established: Mutant 457 | -10/Materials | Discovered new exit (range 16) 480 | -10/Materials | Entered another Materials area 480 | -9/Materials | Evolved 2 slots: Power x1, Utility x1 621 | -9/Materials | Build established: Scavenger-Mutant 696 | -9/Materials | Repaired Ion Engine 722 | -9/Materials | Repaired Sml. Laser 958 | -9/Materials | Discovered new exit (range 6) 984 | -9/Materials | Identified exit to Storage 1063 | -9/Materials | Discovered new exit (range 9) 1193 | -9/Materials | Lost 9 parts (2p2n2u3w) 1219 | -9/Materials | Core integrity fell below 50% 1267 | -9/Materials | Core integrity fell below 20% 1286 | -9/Materials | Destroyed by G-34 Mercenary with Small Laser Last Messages --------------- Acquired Particle Cannon. W-16 Scout distress signal alerts nearby ally. Acquired Particle Cannon. Lgt. Treads destroyed. Particle Cannon destroyed. Acquired 7 matter. Particle Cannon destroyed. Slammed into G-34 Mercenary. Destabilizing: System corrupted (+1). Slammed into K-01 Serf. Acquired Sml. Storage Unit. The Sml. Storage Unit has expanded your inventory capacity. Items held in inventory do not count towards total mass and therefore cannot slow you down. W-16 Scout distress signal alerts nearby ally. U-05 Engineer destroyed. U-05 Engineer lays Concrete. Acquired 10 matter. Acquired Welding Torch. L-31 Rogue destroyed. Welding Torch destroyed. Map ----- +----------------------------------------------------+ | ?????????????????????????????????????????????????? | | ?????????????????????????????????????????????????? | | ?????????????????????????????????????????????????? | | ?????????????????????????????????????????????????? | | ?????????????????????????????????????????????????? | | ?????????????????????????????????????????????????? | | ?????????????????????????????????????????????????? | | ?????????????????????????????????????????????????? | | ?????????????????????????????????????????????????? | | ?????????????????????????????????????????????????? | | ?????????????????????????????????????????????????? | | ?????????????????????????????????????????????????? | | ?????????????????????????????????????????????????? | | ?????????????????????????????????????????????????? | | ?????? ?????????????????????????????????????????? | | ?????# ????????????????????????????????????????? | | ###### ?????######?????????????????????????????? | | #???##!!!!##????????????????????????????? | | #???#! !#?????????????????!??????????? | | #???#! #??????????????? ![ ?????????? | | ##### ############## ????????? | | % ????????? | | ! g #?????????? | | % /g #?????????? | | # ###/########gY #?????????? | | # ^ # % #?#@ ####### #?????????? | | # # """"" #?# #???????? #?????????? | | # ^![ # """"" #?# #????????????????????? | | # [ + """"" #?# #????????????????????? | | # # """"" #?# #????????????????????? | | # # """"" #?# #????????????????????? | | # ##] """"" #?# #????????????????????? | | # """ ## """"" #?# #????????????????????? | | # """ ## #?# #????????????????????? | | # """ ###########?? #????????????????????? | | # #???????????? #????????????????????? | | # #???????????? #????????????????????? | | + ###+#???????????? #????????????????????? | | # # ????????????? ????????????????????? | | # + ??????????????? ????????????????????? | | # % #???????????????? ?????????????????????? | | # #????????????????????????????????????????? | | % #????????????????????????????????????????? | | #????????????????????????????????????????? | | ##+##????????????????????????????????????????? | | "" #????????????????????????????????????????????? | | "" #????????????????????????????????????????????? | | "" #????????????????????????????????????????????? | | #????????????????????????????????????????????? | | +????????????????????????????????????????????? | +----------------------------------------------------+ Best States ------------- Heat Dissipation 48 Energy Generation 15 Energy Capacity 275 Matter Stores 300 Matter Capacity 300 Sight Range 16 Terrain Scan Density 10 Resistance: KI 20 Resistance: TH 20 Resistance: EX 20 Resistance: EM 20 Resistance: I 20 Resistance: S 20 Resistance: P 20 Evasion (%) 50 Recoil Reduction 2 Offensive Hacking 10 Item Schematics ----------------- None Robot Schematics ------------------ None Fabricated ------------ Nothing Alien Tech Used ----------------- None Achievements -------------- None Challenges ------------ None Game ------ Seed HardlightSmartbombWeb Manual? 0 Play Time 00:17:10 Cumulative 2.0 hours Start 2021.09.26 @ 17:26:56 End 2021.09.26 @ 17:49:01 Sessions 1 Manual Loads 0 Difficulty Adventurer Special Mode None Game No. 3 Rogue 0 Adventurer 3 Explorer 0 Win Type - Total 0 Types 0/0/0/0/0/0/0/0/0 Lore% 1 Gallery% 3 Achievement% 2 Wizard Run 0 Options --------- ASCII 1 Keyboard 1 Movement Arrows Keybinds 0 Fullscreen 1 Font 12/Smallcaps Map View 83x54 Tactical HUD 0 Map Filters NONE Filters NONE Steam 1 RUN: 37328d8a-4b43-4de8-9d9c-2f08f85124f3